[Event "57th Biel Festival ATO 2024"]
[Site "Biel"]
[Date "2024.07.23"]
[Round "7.33"]
[White "Wolffs, Walter"]
[Black "Retti, Marco"]
[Result "0-1"]
[ECO "B01"]
[WhiteElo "1544"]
[BlackElo "1772"]
[Annotator "NA"]
[PlyCount "86"]
[EventDate "2024.07.03"]
[EventType "swiss"]
[EventCountry "SUI"]
[SourceTitle "playchess.com"]
[Source "ChessBase"]
[SourceQuality "1"]
[TimeControl "40/5400+30:1800+30"]

1. e4 {[%emt 0:00:05]} d5 {[%emt 0:00:06]} 2. exd5 {[%emt 0:00:04]} Qxd5 {[%emt 0:00:08]} 3. Nc3 {[%emt 0:00:04]} Qa5 {[%emt 0:00:10]} 4. Bc4 {[%emt 0:00:10]} c6 {[%emt 0:00:57]} 5. d3 {[%emt 0:00:07]} Bf5 {[%emt 0:01:16]} 6. Bd2 {[%emt 0:00:08]} e6 {[%emt 0:00:16]} 7. Nf3 {[%emt 0:00:25]} Qc7 {[%emt 0:00:35]} 8. O-O {[%emt 0:02:28]} Nf6 {[%emt 0:09:53]} 9. h3 {[%emt 0:00:07]} Be7 {[%emt 0:01:08]} 10. Re1 {[%emt 0:00:24]} O-O {[%emt 0:01:56]} 11. Nh4 {[%emt 0:00:04]} Bg6 {[%emt 0:00:10]} 12. Nxg6 {[%emt 0:00:27]} hxg6 {[%emt 0:00:06]} 13. Bg5 {[%emt 0:02:41]} Nbd7 {[%emt 0:03:16]} 14. Ne4 {[%emt 0:10:50]} Rad8 {[%emt 0:03:23]} 15. Qe2 {[%emt 0:10:40]} Nb6 {[%emt 0:10:56]} 16. Nxf6+ {[%emt 0:06:48]} Bxf6 {[%emt 0:05:18]} 17. Bxf6 {[%emt 0:00:18]} gxf6 {[%emt 0:00:11]} 18. Bb3 {[%emt 0:00:28]} Rd6 {[%emt 0:00:58]} 19. Qf3 {[%emt 0:01:38]} Kg7 {[%emt 0:00:16]} 20. c3 {[%emt 0:09:16]} Rfd8 {[%emt 0:03:29]} 21. Rad1 {[%emt 0:00:14]} c5 {[%emt 0:06:35]} 22. Bc2 {[%emt 0:08:42]} Nd7 {[%emt 0:01:37]} 23. Re4 {[%emt 0:09:00]} Ne5 {[%emt 0:01:15]} 24. Qg3 {[%emt 0:00:05]} Qd7 {[%emt 0:00:33]} 25. d4 {[%emt 0:00:55]} Nc6 {[%emt 0:02:41]} 26. Ba4 {[%emt 0:04:50]} a6 {[%emt 0:03:59]} 27. b4 {[%emt 0:02:50]} cxb4 {[%emt 0:00:42]} 28. c4 {[%emt 0:12:43]} Qc8 {[%emt 0:01:57]} 29. Qe3 {[%emt 0:02:08]} Ne7 {[%emt 0:03:03]} 30. d5 {[%emt 0:03:58]} Nf5 {[%emt 0:00:32]} 31. Qb3 {[%emt 0:06:02]} exd5 {[%emt 0:07:58]} 32. Rf4 {[%emt 0:04:52]} Qc5 {[%emt 0:02:27]} 33. Qb1 {[%emt 0:02:44]} dxc4 {[%emt 0:02:06]} 34. Rxd6 {[%emt 0:00:43]} Rxd6 {[%emt 0:00:20]} 35. Bc2 {[%emt 0:00:06]} Nd4 {[%emt 0:01:16]} 36. Bd1 {[%emt 0:00:19]} c3 {[%emt 0:02:42]} 37. Qc1 {[%emt 0:00:54]} Qe5 {[%emt 0:04:28]} 38. Rh4 {[%emt 0:00:00]} Qe1+ {[%emt 0:00:00]} 39. Kh2 {[%emt 0:00:00]} Nf3+ {[%emt 0:00:00]} 40. gxf3 {[%emt 0:00:00]} Qxf2+ {[%emt 0:00:00]} 41. Kh1 {[%emt 0:02:12]} Qxh4 {[%emt 0:02:37]} 42. Bb3 {[%emt 0:00:31]} Qxh3+ {[%emt 0:00:34]} 43. Kg1 {[%emt 0:00:22]} Rd2 {[%emt 0:00:53]} 0-1

[Event "57th Biel Festival ATO 2024"]
[Site "Biel"]
[Date "2024.07.23"]
[Round "7.34"]
[White "Settegrana, Miro"]
[Black "Hansen, Michael Bo"]
[Result "0-1"]
[ECO "A45"]
[WhiteElo "1532"]
[BlackElo "1759"]
[Annotator "NA"]
[PlyCount "48"]
[EventDate "2024.07.03"]
[EventType "swiss"]
[EventCountry "SUI"]
[SourceTitle "playchess.com"]
[Source "ChessBase"]
[SourceQuality "1"]
[TimeControl "40/5400+30:1800+30"]

1. d4 {[%emt 0:00:40]} Nf6 {[%emt 0:00:11]} 2. Bg5 {[%emt 0:00:23]} g6 {[%emt 0:00:55]} 3. Bxf6 {[%emt 0:00:23]} exf6 {[%emt 0:00:02]} 4. e3 {[%emt 0:00:29]} Bg7 {[%emt 0:01:14]} 5. Be2 {[%emt 0:00:49]} O-O {[%emt 0:01:33]} 6. Nd2 {[%emt 0:00:50]} d5 {[%emt 0:03:34]} 7. Ngf3 {[%emt 0:02:04]} Re8 {[%emt 0:04:37]} 8. h4 {[%emt 0:01:27]} Bg4 {[%emt 0:01:27]} 9. Nh2 {[%emt 0:01:04]} Bxe2 {[%emt 0:00:21]} 10. Qxe2 {[%emt 0:00:15]} f5 {[%emt 0:01:15]} 11. h5 {[%emt 0:01:53]} Bxd4 {[%emt 0:01:12]} 12. hxg6 {[%emt 0:01:45]} fxg6 {[%emt 0:00:32]} 13. c3 {[%emt 0:03:30]} Bf6 {[%emt 0:01:29]} 14. Nhf3 {[%emt 0:01:08]} Nd7 {[%emt 0:08:17]} 15. Rd1 {[%emt 0:06:03]} c6 {[%emt 0:00:29]} 16. Nd4 {[%emt 0:00:25]} c5 {[%emt 0:06:45]} 17. N4b3 {[%emt 0:02:03]} Qe7 {[%emt 0:09:13]} 18. Nf3 {[%emt 0:04:07]} Nb6 {[%emt 0:00:31]} 19. Kf1 {[%emt 0:08:26]} f4 {[%emt 0:04:56]} 20. Re1 {[%emt 0:05:00]} fxe3 {[%emt 0:00:36]} 21. Qxe3 {[%emt 0:01:16]} Qxe3 {[%emt 0:02:05]} 22. Rxe3 {[%emt 0:00:15]} Rxe3 {[%emt 0:01:01]} 23. fxe3 {[%emt 0:01:40]} Rc8 {[%emt 0:01:09]} 24. Ke2 {[%emt 0:01:33]} Nc4 {[%emt 0:01:06]} 0-1

[Event "57th Biel Festival ATO 2024"]
[Site "Biel"]
[Date "2024.07.23"]
[Round "7.35"]
[White "Pavlov, Myroslav"]
[Black "Sushrutha, Reddy"]
[Result "0-1"]
[ECO "B78"]
[WhiteElo "1736"]
[BlackElo "1649"]
[Annotator "NA RC"]
[PlyCount "80"]
[EventDate "2024.07.03"]
[EventType "swiss"]
[EventCountry "SUI"]
[SourceTitle "playchess.com"]
[Source "ChessBase"]
[SourceQuality "1"]
[TimeControl "40/5400+30:1800+30"]

1. e4 {[%emt 0:00:55]} c5 {[%emt 0:00:03]} 2. Nf3 {[%emt 0:00:07]} d6 {[%emt 0:00:07]} 3. d4 {[%emt 0:00:17]} cxd4 {[%emt 0:00:02]} 4. Nxd4 {[%emt 0:00:02]} Nf6 {[%emt 0:00:20]} 5. Nc3 {[%emt 0:00:05]} g6 {[%emt 0:00:05]} 6. Be3 {[%emt 0:00:57]} Bg7 {[%emt 0:00:02]} 7. f3 {[%emt 0:00:32]} O-O {[%emt 0:00:15]} 8. Bc4 {[%emt 0:00:00]} Nc6 {[%emt 0:00:10]} 9. Qd2 {[%emt 0:00:56]} Bd7 {[%emt 0:01:41]} 10. O-O-O {[%emt 0:00:49]} Rc8 {[%emt 0:00:04]} 11. Bb3 {[%emt 0:00:09]} Ne5 {[%emt 0:00:11]} 12. h4 {[%emt 0:03:13]} h5 {[%emt 0:00:05]} 13. Bh6 {[%emt 0:05:13]} Nc4 {[%emt 0:00:30]} 14. Bxc4 {[%emt 0:01:17]} Rxc4 {[%emt 0:00:10]} 15. Bxg7 {[%emt 0:02:21]} Kxg7 {[%emt 0:00:04]} 16. Nd5 {[%emt 0:08:51]} Nxd5 {[%emt 0:00:44]} 17. exd5 {[%emt 0:00:02]} Rc5 {[%emt 0:02:11]} 18. g4 {[%emt 0:16:06]} hxg4 {[%emt 0:01:10]} 19. fxg4 {[%emt 0:00:02]} Bxg4 {[%emt 0:03:14]} 20. Qg5 {[%emt 0:03:54]} Bc8 {[%emt 0:01:33]} 21. Nb3 {[%emt 0:16:14]} Rc4 {[%emt 0:01:57]} 22. h5 {[%emt 0:13:39]} e5 {[%emt 0:01:38]} 23. Qe3 {[%emt 0:00:41]} Bf5 {[%emt 0:01:43]} 24. c3 {[%emt 0:02:50]} Rh4 {[%emt 0:03:08]} 25. hxg6 {[%emt 0:03:57]} Bxg6 {[%emt 0:03:25]} 26. Rhg1 {[%emt 0:02:57]} Rh2 {[%emt 0:01:17]} 27. Rd2 {[%emt 0:03:02]} Rfh8 {[%emt 0:00:32]} 28. Qxa7 {[%emt 0:02:10]} Qh4 {[%emt 0:00:21]} 29. Qe3 {[%emt 0:01:17]} Qa4 {[%emt 0:00:51]} 30. Qd3 {[%emt 0:06:24]} Qxa2 {[%emt 0:01:28]} 31. Qc2 {[%emt 0:01:10]} Rxd2 {[%emt 0:00:47]} 32. Nxd2 {[%emt 0:00:49]} Rh2 {[%emt 0:02:14]} 33. Qb1 {[%emt 0:01:00]} Qxd5 {[%emt 0:00:57]} 34. Qc2 {[%emt 0:02:19]} Rh1 {[%emt 0:00:49]} 35. Qd1 {[%emt 0:00:32]} Rh2 {[%emt 0:01:08]} 36. Rg4 {[%emt 0:02:46]} Kh7 {[%emt 0:01:15]} 37. Qe1 {[%emt 0:00:40]} Qd3 {[%emt 0:01:04]} 38. Rh4+ {[%emt 0:00:37]} Kg7 {[%emt 0:00:33]} 39. Re4 {[%emt 0:00:36]} Bxe4 {[%emt 0:00:38]} 40. Qxe4 {[%emt 0:00:04]} Qxd2+ {[%emt 0:00:23]} 0-1

[Event "57th Biel Festival ATO 2024"]
[Site "Biel"]
[Date "2024.07.23"]
[Round "7.36"]
[White "Suwendo, Poedjo"]
[Black "Cho, Yeonhee"]
[Result "1-0"]
[ECO "C44"]
[WhiteElo "1727"]
[BlackElo "1686"]
[Annotator "NA"]
[PlyCount "95"]
[EventDate "2024.07.03"]
[EventType "swiss"]
[EventCountry "SUI"]
[SourceTitle "playchess.com"]
[Source "ChessBase"]
[SourceQuality "1"]
[TimeControl "40/5400+30:1800+30"]

1. e4 {[%emt 0:01:00]} e5 {[%emt 0:00:09]} 2. Nf3 {[%emt 0:00:10]} Nc6 {[%emt 0:00:05]} 3. Bc4 {[%emt 0:00:26]} Bc5 {[%emt 0:00:59]} 4. d4 {[%emt 0:00:32]} exd4 {[%emt 0:04:11]} 5. Ng5 {[%emt 0:00:50]} Ne5 {[%emt 0:09:45]} 6. Nxf7 {[%emt 0:00:31]} Nxf7 {[%emt 0:25:22]} 7. Bxf7+ {[%emt 0:00:16]} Kf8 {[%emt 0:03:04]} 8. Bxg8 {[%emt 0:09:01]} Kxg8 {[%emt 0:01:46]} 9. Qd3 {[%emt 0:00:27]} Qe7 {[%emt 0:07:27]} 10. O-O {[%emt 0:00:26]} d6 {[%emt 0:02:52]} 11. b4 {[%emt 0:05:00]} Bb6 {[%emt 0:02:15]} 12. Bb2 {[%emt 0:00:16]} Qf6 {[%emt 0:13:37]} 13. Nd2 {[%emt 0:01:32]} Bg4 {[%emt 0:08:32]} 14. f3 {[%emt 0:03:52]} Be6 {[%emt 0:00:46]} 15. Kh1 {[%emt 0:00:24]} Re8 {[%emt 0:08:34]} 16. a3 {[%emt 0:00:27]} c5 {[%emt 0:01:01]} 17. Nc4 {[%emt 0:03:29]} Bxc4 {[%emt 0:01:09]} 18. Qxc4+ {[%emt 0:00:04]} Qe6 {[%emt 0:00:50]} 19. Qb5 {[%emt 0:02:27]} c4 {[%emt 0:01:30]} 20. Rad1 {[%emt 0:00:57]} c3 {[%emt 0:00:08]} 21. Bc1 {[%emt 0:00:19]} Qe5 {[%emt 0:01:56]} 22. Qd7 {[%emt 0:00:52]} Qe7 {[%emt 0:01:30]} 23. Qb5 {[%emt 0:00:24]} Qe5 {[%emt 0:00:03]} 24. Qe2 {[%emt 0:00:03]} Kf7 {[%emt 0:01:10]} 25. Rde1 {[%emt 0:01:57]} d5 {[%emt 0:01:34]} 26. g3 {[%emt 0:00:56]} Rhf8 {[%emt 0:00:41]} 27. Bf4 {[%emt 0:00:27]} Qe6 {[%emt 0:00:02]} 28. Qb5 {[%emt 0:01:45]} Rd8 {[%emt 0:00:53]} 29. Bg5 {[%emt 0:01:48]} Rd7 {[%emt 0:01:36]} 30. Qd3 {[%emt 0:02:12]} Kg8 {[%emt 0:00:12]} 31. Bf4 {[%emt 0:02:45]} h6 {[%emt 0:00:41]} 32. exd5 {[%emt 0:00:03]} Qxd5 {[%emt 0:00:07]} 33. Re5 {[%emt 0:00:21]} Qf7 {[%emt 0:00:25]} 34. Rfe1 {[%emt 0:00:12]} Bc7 {[%emt 0:01:27]} 35. R5e4 {[%emt 0:00:56]} Bb6 {[%emt 0:00:28]} 36. Kg2 {[%emt 0:00:07]} Qg6 {[%emt 0:00:45]} 37. Be5 {[%emt 0:01:42]} Rfd8 {[%emt 0:00:24]} 38. Bf4 {[%emt 0:07:12]} Qf7 {[%emt 0:00:26]} 39. a4 {[%emt 0:00:22]} a6 {[%emt 0:00:30]} 40. Re6 {[%emt 0:01:07]} Ba7 {[%emt 0:00:37]} 41. R1e4 {[%emt 0:36:59]} Qf8 {[%emt 0:15:41]} 42. b5 {[%emt 0:00:00]} Qb4 {[%emt 0:08:53]} 43. R4e5 {[%emt 0:00:00]} Bb8 {[%emt 0:02:49]} 44. Re8+ {[%emt 0:00:00]} Rxe8 {[%emt 0:02:49]} 45. Rxe8+ {[%emt 0:00:00]} Kf7 {[%emt 0:00:02]} 46. Rxb8 {[%emt 0:00:00]} Qc5 {[%emt 0:01:14]} 47. bxa6 {[%emt 0:00:00]} bxa6 {[%emt 0:00:39]} 48. Ra8 {[%emt 0:00:00]} 1-0

[Event "57th Biel Festival ATO 2024"]
[Site "Biel"]
[Date "2024.07.23"]
[Round "7.37"]
[White "Boyer, Jean-Francois"]
[Black "Kim, Hyunwoo B"]
[Result "1-0"]
[ECO "C45"]
[WhiteElo "1742"]
[BlackElo "1462"]
[Annotator "NA"]
[PlyCount "57"]
[EventDate "2024.07.03"]
[EventType "swiss"]
[EventCountry "SUI"]
[SourceTitle "playchess.com"]
[Source "ChessBase"]
[SourceQuality "1"]
[TimeControl "40/5400+30:1800+30"]

1. e4 {[%emt 0:00:24]} e5 {[%emt 0:00:26]} 2. Nf3 {[%emt 0:00:11]} Nc6 {[%emt 0:00:32]} 3. d4 {[%emt 0:00:20]} exd4 {[%emt 0:00:27]} 4. Nxd4 {[%emt 0:01:05]} Nxd4 {[%emt 0:01:12]} 5. Qxd4 {[%emt 0:00:35]} d6 {[%emt 0:01:47]} 6. Bd2 {[%emt 0:02:03]} Nf6 {[%emt 0:01:54]} 7. Bc3 {[%emt 0:01:29]} Be7 {[%emt 0:02:12]} 8. Nd2 {[%emt 0:08:18]} O-O {[%emt 0:03:37]} 9. O-O-O {[%emt 0:01:18]} Be6 {[%emt 0:01:22]} 10. Bc4 {[%emt 0:03:11]} c6 {[%emt 0:02:30]} 11. Bxe6 {[%emt 0:11:30]} fxe6 {[%emt 0:00:40]} 12. g4 {[%emt 0:05:14]} e5 {[%emt 0:00:23]} 13. Qc4+ {[%emt 0:00:25]} d5 {[%emt 0:00:33]} 14. exd5 {[%emt 0:01:56]} cxd5 {[%emt 0:00:11]} 15. Qb3 {[%emt 0:00:55]} Nxg4 {[%emt 0:00:50]} 16. Ne4 {[%emt 0:01:59]} Nxf2 {[%emt 0:02:31]} 17. Nxf2 {[%emt 0:02:48]} Rxf2 {[%emt 0:00:40]} 18. Rxd5 {[%emt 0:04:47]} Qb6 {[%emt 0:02:04]} 19. Rb5+ {[%emt 0:00:24]} Kh8 {[%emt 0:00:30]} 20. Rxb6 {[%emt 0:00:30]} Raf8 {[%emt 0:00:29]} 21. Rb5 {[%emt 0:07:47]} Bg5+ {[%emt 0:00:21]} 22. Kd1 {[%emt 0:00:14]} Rd8+ {[%emt 0:00:28]} 23. Rd5 {[%emt 0:00:21]} Rdf8 {[%emt 0:01:05]} 24. Bxe5 {[%emt 0:02:39]} R8f5 {[%emt 0:01:40]} 25. Qxb7 {[%emt 0:03:38]} Rf7 {[%emt 0:01:30]} 26. Rd7 {[%emt 0:00:53]} Rd2+ {[%emt 0:00:51]} 27. Rxd2 {[%emt 0:02:29]} Rxb7 {[%emt 0:00:16]} 28. Rd5 {[%emt 0:00:38]} h6 {[%emt 0:01:02]} 29. b3 {[%emt 0:03:27]} 1-0

[Event "57th Biel Festival ATO 2024"]
[Site "Biel"]
[Date "2024.07.23"]
[Round "7.38"]
[White "Spaeti, Kurt"]
[Black "Kern, Beat"]
[Result "0-1"]
[ECO "B18"]
[WhiteElo "1804"]
[BlackElo "1717"]
[Annotator "NA"]
[PlyCount "104"]
[EventDate "2024.07.03"]
[EventType "swiss"]
[EventCountry "SUI"]
[SourceTitle "playchess.com"]
[Source "ChessBase"]
[SourceQuality "1"]
[TimeControl "40/5400+30:1800+30"]

1. e4 {[%emt 0:00:04]} c6 {[%emt 0:00:08]} 2. d4 {[%emt 0:00:58]} d5 {[%emt 0:00:26]} 3. Nc3 {[%emt 0:00:52]} dxe4 {[%emt 0:00:35]} 4. Nxe4 {[%emt 0:01:37]} Bf5 {[%emt 0:00:40]} 5. Ng3 {[%emt 0:01:03]} Bg6 {[%emt 0:00:42]} 6. Nf3 {[%emt 0:02:00]} e6 {[%emt 0:02:31]} 7. Bc4 {[%emt 0:04:07]} Nf6 {[%emt 0:01:09]} 8. O-O {[%emt 0:04:13]} Be7 {[%emt 0:02:23]} 9. Bb3 {[%emt 0:09:20]} O-O {[%emt 0:01:32]} 10. c4 {[%emt 0:01:52]} c5 {[%emt 0:07:13]} 11. d5 {[%emt 0:04:17]} exd5 {[%emt 0:01:43]} 12. cxd5 {[%emt 0:00:34]} Bd6 {[%emt 0:01:13]} 13. Bg5 {[%emt 0:07:04]} h6 {[%emt 0:01:22]} 14. Be3 {[%emt 0:08:56]} Nbd7 {[%emt 0:05:30]} 15. Qd2 {[%emt 0:03:20]} Ng4 {[%emt 0:10:37]} 16. Bf4 {[%emt 0:04:26]} Qc7 {[%emt 0:03:04]} 17. Bxd6 {[%emt 0:01:31]} Qxd6 {[%emt 0:00:17]} 18. a4 {[%emt 0:12:02]} a5 {[%emt 0:02:59]} 19. h3 {[%emt 0:06:48]} Ngf6 {[%emt 0:01:10]} 20. Nh4 {[%emt 0:09:17]} Ne4 {[%emt 0:02:32]} 21. Nxe4 {[%emt 0:01:49]} Bxe4 {[%emt 0:00:56]} 22. Rfe1 {[%emt 0:01:24]} Nf6 {[%emt 0:01:55]} 23. Rad1 {[%emt 0:02:54]} b6 {[%emt 0:02:08]} 24. Re3 {[%emt 0:05:42]} Rfe8 {[%emt 0:03:00]} 25. Rg3 {[%emt 0:02:28]} Nh7 {[%emt 0:10:24]} 26. Bc2 {[%emt 0:01:17]} Ng5 {[%emt 0:04:30]} 27. Bxe4 {[%emt 0:02:31]} Rxe4 {[%emt 0:03:41]} 28. Nf5 {[%emt 0:00:42]} Qf6 {[%emt 0:01:16]} 29. Ne3 {[%emt 0:00:58]} Rd4 {[%emt 0:03:07]} 30. Ng4 {[%emt 0:00:27]} Qd6 {[%emt 0:04:28]} 31. Rd3 {[%emt 0:00:19]} Ne4 {[%emt 0:05:35]} 32. Qe3 {[%emt 0:00:51]} Rxd3 {[%emt 0:01:34]} 33. Rxd3 {[%emt 0:00:33]} f5 {[%emt 0:01:47]} 34. f3 {[%emt 0:00:23]} fxg4 {[%emt 0:02:40]} 35. fxe4 {[%emt 0:00:10]} gxh3 {[%emt 0:03:58]} 36. Qxh3 {[%emt 0:00:03]} Re8 {[%emt 0:00:43]} 37. Qe3 {[%emt 0:01:09]} g5 {[%emt 0:01:22]} 38. Qf3 {[%emt 0:00:40]} Kg7 {[%emt 0:02:07]} 39. g3 {[%emt 0:00:35]} Re7 {[%emt 0:01:01]} 40. Kg2 {[%emt 0:00:26]} Rf7 {[%emt 0:02:04]} 41. Qg4 {[%emt 0:05:16]} Rf6 {[%emt 0:00:50]} 42. Qe2 {[%emt 0:14:10]} Qe5 {[%emt 0:01:05]} 43. Re3 {[%emt 0:01:06]} Kg6 {[%emt 0:01:27]} 44. Rf3 {[%emt 0:02:37]} Rxf3 {[%emt 0:08:17]} 45. Kxf3 {[%emt 0:00:06]} h5 {[%emt 0:00:24]} 46. Qd2 {[%emt 0:04:42]} g4+ {[%emt 0:01:17]} 47. Kf2 {[%emt 0:03:17]} Qxe4 {[%emt 0:00:58]} 48. d6 {[%emt 0:00:06]} Qf5+ {[%emt 0:01:11]} 49. Qf4 {[%emt 0:02:22]} Qxf4+ {[%emt 0:02:39]} 50. gxf4 {[%emt 0:00:04]} Kf6 {[%emt 0:00:16]} 51. f5 {[%emt 0:00:14]} h4 {[%emt 0:00:21]} 52. d7 {[%emt 0:00:46]} Ke7 {[%emt 0:00:32]} 0-1

[Event "57th Biel Festival ATO 2024"]
[Site "Biel"]
[Date "2024.07.23"]
[Round "7.39"]
[White "Lesniak, Julien"]
[Black "Gotti, Nicola"]
[Result "1-0"]
[ECO "C45"]
[WhiteElo "1728"]
[BlackElo "1804"]
[Annotator "NA RC"]
[PlyCount "39"]
[EventDate "2024.07.03"]
[EventType "swiss"]
[EventCountry "SUI"]
[SourceTitle "playchess.com"]
[Source "ChessBase"]
[SourceQuality "1"]
[TimeControl "40/5400+30:1800+30"]

1. e4 {[%emt 0:00:05]} e5 {[%emt 0:00:04]} 2. Nf3 {[%emt 0:00:27]} Nc6 {[%emt 0:00:07]} 3. d4 {[%emt 0:01:01]} exd4 {[%emt 0:00:07]} 4. Nxd4 {[%emt 0:00:54]} Bc5 {[%emt 0:00:07]} 5. Be3 {[%emt 0:02:22]} Qf6 {[%emt 0:00:16]} 6. c3 {[%emt 0:01:43]} d6 {[%emt 0:03:49]} 7. g3 {[%emt 0:02:25]} Nh6 {[%emt 0:03:06]} 8. h3 {[%emt 0:09:01]} Nxd4 {[%emt 0:04:16]} 9. Bxd4 {[%emt 0:00:36]} Bxd4 {[%emt 0:00:16]} 10. Qxd4 {[%emt 0:05:11]} Qxd4 {[%emt 0:00:32]} 11. cxd4 {[%emt 0:00:06]} c6 {[%emt 0:02:17]} 12. f4 {[%emt 0:01:56]} Bd7 {[%emt 0:07:29]} 13. Bg2 {[%emt 0:03:15]} d5 {[%emt 0:03:43]} 14. exd5 {[%emt 0:13:38]} cxd5 {[%emt 0:00:47]} 15. Nc3 {[%emt 0:04:09]} Nf5 {[%emt 0:02:28]} 16. Nxd5 {[%emt 0:03:05]} O-O {[%emt 0:03:40]} 17. Kf2 {[%emt 0:02:06]} Nxd4 {[%emt 0:02:18]} 18. Ne7+ {[%emt 0:06:19]} Kh8 {[%emt 0:00:33]} 19. Rad1 {[%emt 0:00:02]} Rfe8 {[%emt 0:01:20]} 20. Rhe1 {[%emt 0:01:09]} 1-0

[Event "57th Biel Festival ATO 2024"]
[Site "Biel"]
[Date "2024.07.23"]
[Round "7.40"]
[White "Ehrsam, Andreas"]
[Black "Fernandez Van Raap, Marcela"]
[Result "1/2-1/2"]
[ECO "E61"]
[WhiteElo "1793"]
[BlackElo "1613"]
[Annotator "NA"]
[PlyCount "92"]
[EventDate "2024.07.03"]
[EventType "swiss"]
[EventCountry "SUI"]
[SourceTitle "playchess.com"]
[Source "ChessBase"]
[SourceQuality "1"]
[TimeControl "40/5400+30:1800+30"]

1. d4 {[%emt 0:00:13]} Nf6 {[%emt 0:00:07]} 2. Nf3 {[%emt 0:00:05]} g6 {[%emt 0:00:09]} 3. c4 {[%emt 0:00:34]} d6 {[%emt 0:00:09]} 4. Nc3 {[%emt 0:00:43]} Bg7 {[%emt 0:00:07]} 5. e3 {[%emt 0:01:42]} O-O {[%emt 0:00:36]} 6. Be2 {[%emt 0:00:20]} c6 {[%emt 0:02:38]} 7. O-O {[%emt 0:00:31]} Nbd7 {[%emt 0:02:07]} 8. b3 {[%emt 0:01:54]} Nb6 {[%emt 0:02:22]} 9. Bb2 {[%emt 0:00:37]} d5 {[%emt 0:03:52]} 10. c5 {[%emt 0:00:56]} Nbd7 {[%emt 0:00:15]} 11. b4 {[%emt 0:01:22]} b5 {[%emt 0:05:08]} 12. a4 {[%emt 0:00:43]} bxa4 {[%emt 0:00:58]} 13. Rxa4 {[%emt 0:00:46]} a5 {[%emt 0:02:41]} 14. b5 {[%emt 0:00:35]} cxb5 {[%emt 0:01:26]} 15. Bxb5 {[%emt 0:02:01]} Ba6 {[%emt 0:03:35]} 16. Bxa6 {[%emt 0:03:02]} Rxa6 {[%emt 0:00:09]} 17. Qe2 {[%emt 0:00:19]} Ra8 {[%emt 0:04:44]} 18. Rfa1 {[%emt 0:04:55]} Ne8 {[%emt 0:05:06]} 19. Qd2 {[%emt 0:03:26]} Nb8 {[%emt 0:03:28]} 20. Nd1 {[%emt 0:06:15]} Nc6 {[%emt 0:00:22]} 21. Bc3 {[%emt 0:00:22]} Qd7 {[%emt 0:15:41]} 22. Bxa5 {[%emt 0:01:34]} e5 {[%emt 0:02:10]} 23. R4a2 {[%emt 0:03:31]} e4 {[%emt 0:01:38]} 24. Ne1 {[%emt 0:00:30]} f5 {[%emt 0:00:52]} 25. f4 {[%emt 0:01:43]} Nf6 {[%emt 0:01:25]} 26. Bc3 {[%emt 0:00:52]} Rab8 {[%emt 0:02:14]} 27. Rb2 {[%emt 0:01:08]} Rbc8 {[%emt 0:01:46]} 28. Rb6 {[%emt 0:00:54]} h6 {[%emt 0:01:35]} 29. Rab1 {[%emt 0:00:50]} Qe6 {[%emt 0:02:22]} 30. Qe2 {[%emt 0:04:08]} g5 {[%emt 0:03:36]} 31. g3 {[%emt 0:00:47]} gxf4 {[%emt 0:01:20]} 32. gxf4 {[%emt 0:00:13]} Rf7 {[%emt 0:01:28]} 33. Rb7 {[%emt 0:00:54]} Rcc7 {[%emt 0:01:52]} 34. Rxc7 {[%emt 0:00:35]} Rxc7 {[%emt 0:00:08]} 35. Ng2 {[%emt 0:00:39]} Nd7 {[%emt 0:01:27]} 36. Qh5 {[%emt 0:02:00]} Kh7 {[%emt 0:01:54]} 37. Nh4 {[%emt 0:03:20]} Ne7 {[%emt 0:02:33]} 38. Be1 {[%emt 0:03:24]} Ra7 {[%emt 0:17:49]} 39. Qe2 {[%emt 0:01:28]} Bf6 {[%emt 0:00:45]} 40. Kh1 {[%emt 0:01:13]} Ra8 {[%emt 0:01:56]} 41. Bg3 {[%emt 0:30:52]} Rg8 {[%emt 0:09:27]} 42. Rc1 {[%emt 0:00:00]} Rg4 {[%emt 0:00:32]} 43. Ng2 {[%emt 0:00:00]} Nc6 {[%emt 0:01:17]} 44. Nf2 {[%emt 0:00:00]} Rg7 {[%emt 0:00:25]} 45. Bh4 {[%emt 0:00:00]} Rxg2 {[%emt 0:01:33]} 46. Bxf6 {[%emt 0:00:00]} Rxf2 {[%emt 0:00:19]} 1/2-1/2